bitfinex/quotes_ETHUSD_20220202
["timestamp","ask_amount","ask_price","bid_price","bid_amount"]
[1643766614397,1.67965893,2758.9,2758.3,0.73077055]
[1643766614398,0.1807,2758.9,2758.3,0.73077055]
[1643766615799,0.1807,2758.9,2758.3,1.63717055]
[1643766616001,0.1807,2758.9,2758.4,0.34468903]
[1643766616399,0.1807,2759.0,2758.4,0.34468903]
[1643766617242,0.1807,2759.2,2758.4,1.25104903]
[1643766617443,0.67746421,2759.2,2758.4,1.25104903]
[1643766617642,1.85816421,2759.3,2758.4,1.25104903]
[1643766617842,1.53246128,2759.2,2758.4,1.25104903]
[1643766618054,2.20992549,2759.2,2758.4,1.25104903]
[1643766618449,2.20992549,2759.2,2758.4,0.90636]
[1643766619251,2.08707,2759.3,2758.4,0.90636]
[1643766619252,2.20992549,2759.1,2758.4,0.90636]
[1643766619452,0.37714873,2758.6,2758.1,3.00299]
[1643766619652,1.53246128,2758.5,2758.1,3.00299]
[1643766619853,1.53246128,2758.5,2758.1,1.81269]
[1643766620453,1.53246128,2758.5,2758.2,0.92595073]
[1643766620659,1.53246128,2758.4,2758.2,0.92595073]
[1643766620906,1.76478421,2759.1,2758.2,0.92595073]
[1643766621107,1.08732,2759.1,2758.3,0.9064]
[1643766621307,0.1809,2759.1,2758.3,0.9064]
[1643766621706,0.42300019,2758.9,2758.3,0.9064]
[1643766622107,1.27558549,2758.9,2758.3,0.9064]
[1643766622708,1.27558549,2758.9,2758.1,1.99389]
[1643766622908,1.27558549,2758.9,2758.0,1.2306]
[1643766622909,1.45628549,2758.9,2758.0,1.2306]
[1643766623109,0.523,2758.8,2758.0,1.2306]
[1643766623314,0.1806,2758.7,2758.0,1.2306]
[1643766624313,0.32889194,2758.4,2758.0,1.2306]
[1643766624512,0.1806,2758.7,2757.9,0.91636942]
[1643766624745,0.1806,2758.7,2757.9,1.82287942]
[1643766625548,0.19279156,2758.9,2758.3,0.35747824]
[1643766625749,0.1809,2759.0,2758.3,2.17007824]
[1643766625953,0.85856421,2759.2,2758.4,0.9063]
[1643766626149,0.1811,2759.2,2758.4,0.9063]
[1643766626649,0.95409579,2759.2,2758.5,0.90602293]
[1643766626851,1.63156,2759.2,2758.5,0.90602293]
[1643766627248,0.95409579,2759.2,2758.5,0.90602293]
[1643766627652,0.95409579,2759.2,2758.0,3.03891]
[1643766627653,1.58388421,2759.1,2758.0,3.03891]
[1643766627852,0.67746421,2758.9,2758.0,3.03891]
[1643766628050,0.67746421,2758.9,2758.0,1.2261]
[1643766628689,0.34561616,2758.7,2758.1,0.8634608]
[1643766629899,0.90654,2758.8,2758.1,0.8634608]
[1643766630496,0.67746421,2758.9,2758.1,0.8634608]
[1643766630697,2.28763421,2759.0,2758.1,0.8634608]
[1643766631003,1.0285202,2759.0,2758.2,0.40454241]
[1643766632000,0.1807,2759.0,2758.6,0.95046035]
[1643766632249,4.12978426,2759.4,2758.6,1.81206035]
[1643766632645,1.0,2759.3,2758.6,1.81206035]
[1643766633046,1.0,2759.3,2758.7,0.44887447]
[1643766633246,3.58544578,2759.4,2758.7,0.90627]
[1643766633247,5.26290999,2759.4,2758.7,0.90627]
[1643766633446,2.81058994,2759.4,2758.7,0.90627]
[1643766633846,1.0,2759.3,2758.7,0.90627]
[1643766634247,1.81058994,2759.4,2758.7,0.90627]
[1643766635349,1.13312573,2759.4,2758.7,0.90627]
[1643766635754,1.81058994,2759.4,2758.7,0.90627]
[1643766635992,2.71690994,2759.4,2758.7,0.90627]
[1643766636201,2.71690994,2759.4,2758.4,1.99373]
[1643766636395,1.0,2759.3,2758.4,2.29373]
[1643766636597,1.0,2759.3,2758.6,0.87897056]
[1643766636798,1.0,2759.3,2758.6,1.78529056]
[1643766637297,3.71690994,2759.4,2758.6,1.78529056]
[1643766637598,1.13312573,2759.4,2758.6,1.78529056]
[1643766639196,1.13312573,2759.4,2758.6,0.90632]
[1643766639396,0.67746421,2759.4,2758.6,0.90632]
[1643766639650,3.81789296,2759.6,2758.5,2.87837984]
[1643766639854,3.63719296,2759.6,2758.8,0.90614]
[1643766640057,3.62422005,2759.6,2758.8,0.90614]
[1643766640254,2.45232005,2759.6,2758.8,0.90614]
[1643766640456,2.45232005,2759.6,2759.1,0.900164]
[1643766640860,1.5321408,2759.5,2759.1,0.900164]
[1643766641055,1.5312295,2759.4,2758.7,0.90608]
[1643766641257,0.50816194,2759.7,2758.7,4.16019337]
[1643766641856,0.36996197,2759.7,2759.2,0.90609]
[1643766642058,1.1368,2759.9,2759.2,0.90609]
[1643766642257,3.6552,2760.1,2759.4,0.84212432]
[1643766642258,6.10655038,2760.1,2759.4,0.84212432]
[1643766642462,2.45135038,2760.1,2759.4,0.84212432]
[1643766643499,0.4358488,2759.9,2759.4,0.84212432]
[1643766643895,0.4358488,2759.9,2759.5,0.90598]
[1643766644702,4.9406,2760.2,2759.5,0.90598]
[1643766645000,0.85816421,2760.3,2759.5,0.90598]
[1643766645202,1.85816421,2760.3,2759.5,0.90598]
[1643766645601,0.85816421,2760.3,2759.5,0.90598]
[1643766645804,1.85816421,2760.3,2759.5,0.90598]
[1643766646003,0.40321362,2760.1,2759.5,0.90598]
[1643766647008,0.1807,2760.3,2759.6,2.70849]
[1643766647242,2.63205038,2760.6,2759.7,0.90578]
[1643766647448,2.45135038,2760.6,2759.7,0.90578]
[1643766647743,2.45135038,2760.6,2759.8,0.3]
[1643766647944,0.34852393,2760.1,2759.8,0.3]
[1643766648147,0.34852393,2760.1,2759.9,0.71716866]
[1643766648344,0.34852393,2760.1,2759.6,1.99265]
[1643766648846,0.34852393,2760.1,2759.4,1.1897]
[1643766649056,0.34852393,2760.1,2759.2,0.25]
[1643766649252,0.34852393,2760.1,2758.8,5.2389]
[1643766649253,0.1811,2760.0,2758.8,5.2389]
[1643766649446,0.73026911,2759.6,2758.9,2.1038179]
[1643766649646,0.1811,2760.0,2758.9,2.4038179]
[1643766649852,0.37730591,2759.4,2758.9,4.2158779]
[1643766650152,0.1811,2760.0,2758.9,4.2158779]
[1643766650351,1.6614,2760.1,2759.0,0.1811]
[1643766651204,0.77604533,2759.8,2759.0,0.1811]
[1643766651906,0.77604533,2759.8,2759.2,0.90604]
[1643766652104,0.32713233,2759.7,2759.2,0.90604]
[1643766652906,0.32713233,2759.7,2759.3,0.3]
[1643766653804,0.32713233,2759.7,2759.2,0.90604]
[1643766654753,0.86792354,2760.1,2759.2,0.90604]
[1643766654953,0.86792354,2760.1,2759.3,0.3]
[1643766655158,0.86792354,2760.1,2759.4,0.90596]
[1643766656153,0.32077397,2760.0,2759.4,0.90596]
[1643766657954,0.1807,2760.3,2759.4,0.90596]
[1643766658396,0.1807,2760.3,2759.5,2.28805336]
[1643766658796,0.1807,2760.3,2759.9,0.72608338]
[1643766659003,0.56271169,2760.4,2759.5,1.81161]
[1643766660001,0.1807,2760.5,2760.0,0.9278079]
[1643766660501,0.1807,2760.6,2760.0,0.9278079]
[1643766661202,0.37953044,2760.4,2760.0,0.9278079]
[1643766661402,1.53189266,2760.3,2760.0,0.9278079]
[1643766661901,1.53189266,2760.2,2760.0,0.9278079]
[1643766662151,1.53189266,2760.1,2760.0,0.9278079]
[1643766662358,1.53189266,2760.5,2760.0,0.9278079]
[1643766662554,1.53189266,2760.4,2760.0,0.9278079]
[1643766662852,1.53189266,2760.3,2759.8,0.90583]
[1643766663054,0.1807,2760.7,2759.8,0.90583]
[1643766663055,1.53189266,2760.2,2759.8,0.90583]
[1643766663252,1.53189266,2760.1,2759.8,0.90583]
[1643766663452,1.3475,2760.7,2759.8,0.90583]
[1643766663654,0.40502618,2760.3,2759.8,0.90583]
[1643766663854,1.531873,2760.2,2759.8,0.90583]
[1643766664152,0.93689918,2760.7,2759.8,1.73516286]
[1643766664360,1.53187962,2760.6,2759.9,2.43525034]
[1643766664556,2.45135038,2761.0,2759.9,0.78694668]
[1643766664759,1.53151726,2760.9,2760.1,0.9056]
[1643766664964,1.53151726,2760.9,2760.2,0.4811]
[1643766665157,0.43206246,2761.1,2760.2,0.1811]
[1643766665361,0.43206246,2761.1,2760.0,3.1929]
[1643766665362,3.66677772,2761.0,2760.0,3.1929]
[1643766665563,1.53152738,2760.9,2760.0,3.0118]
[1643766665761,2.13525034,2760.8,2760.0,3.0118]
[1643766665994,1.53152738,2760.7,2760.0,3.0118]
[1643766666195,0.40933087,2760.5,2760.0,3.0118]
[1643766666394,0.97746421,2761.0,2759.9,1.3282]
[1643766666395,2.13525034,2761.0,2759.9,1.3282]
[1643766666595,1.53165753,2760.9,2759.9,1.3282]
[1643766666792,1.53165753,2760.9,2759.9,1.1471]
[1643766667895,2.0749369,2760.8,2759.9,2.05289]
[1643766668095,1.53165753,2760.7,2759.9,2.05196857]
[1643766668295,2.12725973,2760.6,2759.9,2.05196857]
[1643766668504,1.53165753,2760.5,2759.9,2.05196857]
[1643766668800,3.59986382,2760.5,2759.9,0.90486857]
[1643766669002,2.46984896,2760.9,2759.9,0.90486857]
[1643766669201,1.5316956,2760.8,2759.9,2.04586857]
[1643766669647,0.37590584,2760.6,2759.9,2.04586857]
[1643766669853,1.5316956,2760.5,2759.9,2.04586857]
[1643766670060,1.5316956,2760.5,2759.9,0.90486857]
[1643766670653,3.3227495,2761.0,2759.9,0.90486857]
[1643766670854,1.53165555,2760.9,2759.9,2.11696857]
[1643766671055,2.15891719,2760.8,2759.9,2.11696857]
[1643766671253,1.53165555,2760.7,2759.9,2.11696857]
[1643766672056,1.53165555,2760.6,2759.9,2.11696857]
[1643766672254,1.53165555,2760.5,2759.9,2.11696857]
[1643766672458,2.10400684,2760.8,2759.9,0.90486857]
[1643766672664,1.53183359,2760.7,2759.9,0.90486857]
[1643766672855,1.53183359,2760.7,2759.9,1.08596857]
[1643766673056,0.32275426,2760.4,2759.9,1.08596857]
[1643766673259,2.24129795,2760.8,2759.9,0.90486857]
[1643766673490,1.53183432,2760.7,2759.9,0.90486857]
[1643766673692,1.53183432,2760.6,2759.9,0.90486857]
[1643766673894,5.0318,2761.1,2759.9,0.90486857]
[1643766674092,1.53174673,2761.0,2759.9,0.90486857]
[1643766674293,1.48174673,2761.0,2759.9,0.90486857]
[1643766674492,0.3202478,2760.6,2759.9,0.90486857]
[1643766674898,5.0318,2761.1,2759.9,0.90486857]
[1643766675098,0.28896215,2761.3,2760.0,1.38673]
[1643766675305,0.67746421,2761.6,2760.3,0.9055]
[1643766675499,2.1382906,2761.5,2760.4,1.3879]
[1643766675700,2.81575481,2761.5,2760.4,1.3879]
[1643766675899,0.43637765,2761.1,2760.4,1.207]
[1643766676101,0.43637765,2761.1,2760.7,0.92352472]
[1643766676301,0.43637765,2761.1,2760.5,3.1987]
[1643766676500,0.43637765,2761.1,2760.6,0.90554]
[1643766677545,0.43637765,2761.1,2760.5,1.81107]
[1643766677546,2.12980052,2761.0,2760.5,1.81107]
[1643766677746,2.12980052,2761.0,2760.2,3.0727]
[1643766677747,2.10795621,2761.0,2760.2,3.0727]
[1643766678149,0.43637765,2761.1,2760.3,0.90569]
[1643766678547,0.43637765,2761.1,2760.5,0.74920818]
[1643766679750,0.43637765,2761.1,2760.5,1.65482818]
[1643766680251,1.47172256,2761.4,2760.5,1.65482818]
[1643766680457,0.79425835,2761.4,2760.5,1.65482818]
[1643766680657,1.67746421,2761.5,2760.5,1.65482818]
[1643766680893,0.67746421,2761.6,2760.6,2.34937298]
[1643766681095,0.82827212,2761.7,2760.7,0.90547]
[1643766681499,0.33396954,2761.5,2760.7,0.90547]
[1643766681794,1.05425137,2761.5,2760.7,0.90547]
[1643766681992,1.73171558,2761.5,2760.7,0.90547]
[1643766683098,1.05425137,2761.5,2760.7,0.90547]
[1643766683295,1.73171558,2761.5,2760.7,0.90547]
[1643766686051,1.73171558,2761.5,2760.6,1.1779]
[1643766686052,0.67746421,2761.4,2760.6,1.1779]
[1643766686251,0.67746421,2761.3,2760.6,1.1779]
[1643766686452,0.84605217,2761.0,2760.5,0.1809]
[1643766687653,0.37923235,2760.6,2760.5,0.1809]
[1643766687855,3.12923235,2760.6,2760.5,0.1809]
[1643766688710,0.37923235,2760.6,2760.5,0.1809]
[1643766688906,0.01299402,2760.9,2760.5,0.1809]
[1643766689108,1.52351638,2761.0,2760.5,0.1809]
[1643766689308,0.84605217,2761.0,2760.5,0.1809]
[1643766689507,0.84605217,2761.0,2760.3,0.89921658]
[1643766689712,1.52351638,2761.0,2760.0,1.3509]
[1643766690511,0.67746421,2760.9,2760.0,1.3509]
[1643766690715,0.84605217,2761.0,2760.0,1.3509]
[1643766690716,1.52351638,2761.0,2760.0,1.3509]
[1643766690916,0.41490361,2760.5,2760.1,0.93611887]
[1643766692559,2.52351638,2761.0,2760.1,0.93611887]
[1643766692758,1.01227816,2760.9,2760.1,0.93611887]
[1643766693160,0.01227816,2760.9,2760.1,0.93611887]
[1643766693359,1.01227816,2760.9,2760.1,0.93611887]
[1643766693759,0.01227816,2760.9,2760.1,0.93611887]
[1643766694160,1.52351638,2761.0,2760.2,0.90574]
[1643766694361,1.5317694,2760.8,2760.2,0.90574]
[1643766694560,0.84605217,2761.0,2760.2,0.90574]
[1643766694561,1.5317694,2760.7,2760.2,0.90574]
[1643766694766,1.5317694,2760.6,2760.2,0.90574]
[1643766694963,1.5317694,2760.5,2760.2,0.90574]
[1643766695167,1.5317694,2760.4,2760.2,0.90574]
[1643766695364,1.5317694,2760.6,2760.2,0.90574]
[1643766695564,1.53175558,2760.5,2760.2,0.90574]
[1643766695763,1.53175558,2760.4,2760.2,0.90574]
[1643766696001,0.33264095,2760.7,2760.2,0.90574]
[1643766696207,1.5317508,2760.6,2760.2,0.90574]
[1643766698712,1.5317508,2760.6,2760.0,0.1811]
[1643766698713,0.72826392,2760.1,2760.0,0.1811]
[1643766698910,1.5317508,2760.1,2759.9,1.81139]
[1643766699104,1.01010516,2760.7,2759.9,1.81139]
[1643766699105,1.5317508,2760.0,2759.9,1.81139]
[1643766699511,1.5317508,2760.6,2759.9,1.81139]
[1643766699747,2.27680187,2760.5,2759.9,2.5290518]
[1643766700049,1.5317508,2760.4,2759.9,0.7176618]
[1643766700250,1.5317508,2760.3,2759.9,0.7176618]
[1643766700447,1.5317508,2760.6,2759.9,0.7176618]
[1643766700848,2.20921501,2760.6,2759.9,0.7176618]
[1643766701446,2.94854864,2760.6,2759.9,0.7176618]
[1643766701646,1.5317508,2760.5,2759.9,0.7176618]
[1643766702748,1.5317508,2760.4,2759.9,1.6234918]
[1643766702946,1.5317508,2760.3,2759.9,1.6234918]
[1643766703147,1.5317508,2760.2,2759.9,1.6234918]
[1643766703394,1.87646421,2760.8,2759.9,1.6234918]
[1643766703701,1.94692854,2760.7,2759.9,1.6234918]
[1643766703901,1.53181781,2760.6,2759.9,1.6234918]
[1643766704493,1.53181781,2760.5,2759.9,1.6234918]
[1643766704697,1.53181781,2760.4,2759.9,1.6234918]
[1643766704901,1.53181781,2760.3,2759.9,1.6234918]
[1643766705099,1.53181781,2760.2,2759.9,1.6234918]
[1643766705396,1.53181781,2760.1,2759.9,1.6234918]
[1643766705598,1.43848803,2760.8,2759.9,1.8045918]
[1643766705800,1.53178864,2760.7,2759.9,1.8045918]
[1643766706599,1.89488793,2760.7,2759.9,1.8045918]
[1643766706799,1.53178864,2760.6,2759.9,1.8045918]
[1643766707450,1.53178864,2760.5,2759.9,1.8045918]
[1643766707650,1.53178864,2760.4,2759.9,1.8045918]
[1643766707852,1.53178864,2760.3,2759.9,1.8045918]
[1643766708050,1.53178864,2760.2,2759.9,1.8045918]
[1643766708251,0.76102382,2760.8,2759.9,1.8045918]
[1643766708451,1.53172094,2760.7,2759.9,1.8045918]
[1643766709658,1.53172094,2760.7,2759.9,1.6234918]
[1643766720106,1.53172094,2760.7,2759.9,1.3234918]
[1643766723558,3.54897963,2760.7,2759.9,0.60583]
[1643766723762,3.54897963,2760.7,2759.8,1.81147]
[1643766723763,1.53172094,2760.6,2759.8,1.81147]
[1643766723962,1.53172094,2760.6,2759.6,1.2254]
[1643766723963,2.62724227,2760.5,2759.6,1.2254]
[1643766724159,1.53172094,2760.4,2759.6,1.2254]
[1643766725167,0.44643613,2760.1,2759.7,0.72748839]
[1643766725361,1.53172094,2760.0,2759.7,0.72748839]
[1643766725760,1.53172094,2760.0,2759.5,1.81177]
[1643766727806,3.56992186,2760.0,2759.5,1.81177]
[1643766728009,1.53172094,2759.9,2759.5,1.81177]
[1643766728208,1.53172094,2759.8,2759.5,1.81177]
[1643766728508,0.44643613,2760.1,2759.5,1.81177]
[1643766728709,1.53200737,2760.0,2759.5,1.81177]
[1643766728907,1.53200737,2760.0,2759.5,1.76177]
[1643766729757,1.53200737,2760.0,2759.6,0.3]
[1643766730463,1.53200737,2759.9,2759.6,0.3]
[1643766730662,1.53200737,2759.8,2759.6,0.3]
[1643766730864,0.73741806,2760.3,2759.6,0.3]
[1643766731163,1.53197337,2760.2,2759.7,0.78518077]
[1643766734321,2.05392,2760.7,2759.7,0.78518077]
[1643766734322,1.148,2760.7,2759.7,1.38518077]
[1643766734518,1.53174089,2760.6,2759.8,0.1811]
[1643766735123,1.53174089,2760.6,2760.3,0.39421114]
[1643766735322,1.53174089,2760.6,2760.2,1.65533675]
[1643766735519,1.53174089,2760.5,2760.2,1.65533675]
[1643766735720,1.53174089,2760.4,2760.2,1.65533675]
[1643766735923,1.53174089,2760.3,2760.2,1.65037322]
[1643766736818,1.53174089,2760.8,2760.2,1.97152359]
[1643766738459,1.53174089,2760.7,2760.2,1.97152359]
[1643766738658,1.53174089,2760.6,2760.2,1.97152359]
[1643766738863,1.53174089,2760.5,2760.2,1.97152359]
[1643766739062,1.53174089,2760.4,2760.2,1.97152359]
[1643766739264,5.53906421,2761.1,2760.2,1.97152359]
[1643766739464,0.34192094,2760.9,2760.2,1.97152359]
[1643766739864,1.53165464,2760.8,2760.2,1.97152359]
[1643766740171,1.53165464,2760.8,2760.3,0.90571]
[1643766740767,2.02020823,2760.7,2760.1,1.99257]
[1643766741008,1.53165464,2760.6,2760.1,1.81147]
[1643766741205,2.08561125,2760.5,2760.1,1.81147]
[1643766741409,1.53165464,2760.4,2760.1,1.81147]
[1643766741606,2.36214595,2760.4,2759.9,0.1811]
[1643766741808,3.61218938,2760.3,2759.9,0.1811]
[1643766742010,1.53165464,2760.2,2759.9,0.1811]
[1643766742208,2.12292592,2760.1,2759.9,0.1811]
[1643766742607,3.12292592,2760.1,2759.9,0.1811]
[1643766742814,1.23324038,2759.9,2759.4,1.1263]
[1643766743006,1.23324038,2759.9,2759.3,0.71129505]
[1643766743007,3.55668733,2759.8,2759.3,0.71129505]
[1643766743408,1.53165464,2759.7,2759.3,0.71129505]
[1643766743810,1.53165464,2759.7,2759.4,1.81189]
[1643766744009,1.23324038,2759.9,2759.4,1.81189]
[1643766744209,1.53211135,2759.8,2759.4,1.81189]
[1643766744411,2.02375541,2759.7,2759.1,3.2262]
[1643766744648,1.53211135,2759.6,2759.0,0.1811]
[1643766744855,1.53211135,2759.6,2759.0,1.08715]
[1643766745059,0.8519987,2759.9,2759.3,0.91752062]
[1643766745261,1.53206349,2759.8,2759.3,0.91752062]
[1643766745661,0.1812,2760.1,2759.3,0.91752062]
[1643766745863,1.53200166,2760.0,2759.7,0.38094192]
[1643766746063,0.1811,2760.2,2759.7,0.90593]
[1643766746064,1.53200166,2759.9,2759.7,0.90593]
[1643766746266,0.1811,2760.3,2759.5,1.81185]
[1643766746463,1.53195016,2760.2,2759.5,1.81185]
[1643766747066,2.39174702,2760.2,2759.5,1.81185]
[1643766747363,1.53195016,2760.1,2759.5,1.81185]
[1643766747763,1.53195016,2760.1,2759.6,0.90596]
[1643766748707,1.53195016,2760.0,2759.6,0.90596]
[1643766748909,1.53195016,2760.2,2759.6,0.90596]
[1643766749512,0.90530238,2760.1,2759.6,0.90596]
[1643766749712,1.53195016,2760.0,2759.6,0.90596]
[1643766749911,0.1811,2760.3,2759.6,0.90596]
[1643766750114,1.53193225,2760.2,2759.6,0.90596]
[1643766751112,2.24516517,2760.2,2759.6,0.90596]
[1643766751313,1.53193225,2760.1,2759.6,0.90596]
[1643766753261,3.58032566,2760.1,2759.6,0.90596]
[1643766753461,0.71323292,2760.2,2759.6,0.90596]
[1643766753462,1.53193225,2760.0,2759.6,0.90596]
[1643766753659,1.53193225,2759.9,2759.6,0.90596]
[1643766753860,0.71323292,2760.2,2759.6,0.90596]
[1643766754060,1.53196877,2760.1,2759.6,0.90596]
[1643766756507,3.54404041,2760.1,2759.6,0.90596]
[1643766756707,1.53196877,2760.0,2759.6,0.90596]
[1643766757109,1.53196877,2759.9,2759.6,0.90596]
[1643766757309,0.71323292,2760.2,2759.6,0.90596]
[1643766757510,1.53198616,2760.1,2759.6,0.90596]
[1643766761766,1.53198616,2760.1,2759.6,1.20596]
[1643766762571,1.53198616,2760.3,2759.6,1.20596]
[1643766763614,1.53198616,2760.3,2759.8,1.80099743]
[1643766767261,1.53060728,2760.3,2759.8,1.80099743]
[1643766772916,1.53060728,2760.3,2760.1,0.42763454]
[1643766773116,1.53060728,2760.3,2759.8,1.80099743]
[1643766773317,0.92607208,2760.5,2759.8,1.80099743]
[1643766773917,2.04194111,2760.4,2759.8,1.80099743]
[1643766774654,2.04194111,2760.4,2759.8,0.89508743]
[1643766774861,2.04194111,2760.4,2759.7,2.21702468]
[1643766775060,2.22304111,2760.4,2759.7,1.8117]
[1643766776464,2.04194111,2760.4,2759.7,1.8117]
[1643766777366,0.86501618,2760.0,2759.7,1.8117]
[1643766780925,2.94794111,2760.4,2759.7,1.8117]
[1643766782176,0.74969643,2760.1,2759.7,1.8117]
[1643766782560,0.69969643,2760.1,2759.7,1.8117]
[1643766783766,0.64969643,2760.1,2759.7,1.8117]
[1643766785069,2.18149347,2760.2,2759.7,1.8117]
[1643766785270,4.32377576,2760.4,2759.7,1.8117]
[1643766785473,2.07206227,2760.4,2759.7,1.8117]
[1643766785772,2.74952648,2760.4,2759.7,1.8117]
[1643766787217,2.43791705,2760.3,2759.7,1.8117]
[1643766787414,1.53191705,2760.2,2759.9,0.77686613]
[1643766787809,1.53191705,2760.1,2759.9,0.77686613]
[1643766788010,2.07206227,2760.4,2759.9,0.77686613]
[1643766788011,1.53191705,2760.0,2759.9,0.77686613]
[1643766788211,1.53191705,2760.3,2759.9,0.77686613]
[1643766789763,2.07206227,2760.4,2759.9,0.77686613]
[1643766789960,2.01567332,2760.5,2759.9,0.77686613]
[1643766790159,2.02263051,2760.4,2759.9,0.77686613]
[1643766790359,1.12584672,2760.5,2759.9,0.77686613]
[1643766790560,1.08706,2760.5,2759.9,0.77686613]
[1643766790761,0.1811,2760.5,2759.9,0.77686613]
[1643766791560,0.1811,2760.5,2759.9,1.68274613]
[1643766791561,0.85856421,2760.5,2759.9,1.68274613]
[1643766791761,2.05373594,2760.4,2759.9,1.68274613]
[1643766791964,1.39408922,2760.5,2759.9,1.68274613]
[1643766792161,2.00539715,2760.4,2759.9,1.68274613]
[1643766792367,2.00539715,2760.4,2759.9,0.90588]
[1643766794109,3.58884136,2760.4,2759.5,1.08713]
[1643766794312,0.67746421,2760.3,2759.4,1.99305]
[1643766794510,2.40384675,2760.2,2759.5,0.3]
[1643766794712,2.40384675,2760.2,2759.4,1.81195]
[1643766795117,2.40384675,2760.2,2759.0,0.25]
[1643766795118,6.0,2759.7,2759.0,0.25]
[1643766795317,6.0,2759.7,2758.9,1.81206]
[1643766795318,0.01276737,2759.5,2758.9,0.1812]
[1643766795518,0.01276737,2759.5,2758.5,0.1812]
[1643766795519,0.523,2759.4,2758.5,0.1812]
[1643766795714,0.523,2759.4,2758.2,1.1668]
[1643766795715,23.35755838,2759.3,2758.3,0.1812]
[1643766795914,2.77471349,2759.2,2758.3,0.1812]
[1643766796116,0.9066,2759.0,2758.0,7.47]
[1643766796421,0.9066,2759.0,2757.7,0.1812]
[1643766796422,0.43453916,2757.8,2757.7,0.1812]
[1643766796616,1.1182,2758.0,2757.2,0.3873107]
[1643766796814,1.1182,2758.0,2757.3,0.1812]
[1643766797764,2.01634285,2757.9,2757.3,0.1812]
[1643766797964,0.80825806,2757.7,2757.3,0.1812]
[1643766798168,2.01634285,2757.9,2757.3,0.1812]
[1643766798367,0.32805692,2757.9,2757.3,0.1812]
[1643766799168,0.86529233,2758.0,2757.3,0.1812]
[1643766799370,0.1812,2758.3,2757.4,0.90661]
[1643766800376,0.7546542,2757.9,2757.4,0.90661]
[1643766800906,0.1812,2758.3,2757.4,0.90661]
[1643766802111,0.92312644,2758.2,2757.6,0.8776959]
[1643766803112,0.92312644,2758.2,2757.4,0.90661]
[1643766805064,0.92312644,2758.2,2757.5,0.68343858]
[1643766805269,0.92312644,2758.2,2757.4,0.90661]
[1643766806964,0.89379762,2757.7,2757.4,0.90661]
[1643766807268,0.89379762,2757.7,2757.2,0.1812]
[1643766807269,2.24594544,2757.6,2757.2,0.1812]
[1643766807466,1.79539762,2757.7,2757.2,0.1812]
[1643766809315,1.79539762,2757.7,2757.1,0.32311404]
[1643766815463,1.79434801,2757.7,2757.1,0.32311404]
[1643766818613,0.89274801,2757.7,2757.1,0.32311404]
[1643766819012,2.13502142,2757.6,2756.8,3.7258]
[1643766819214,2.13502142,2757.6,2756.8,0.1812]
[1643766819215,21.753,2757.5,2756.8,0.1812]
[1643766819414,0.1812,2757.4,2756.8,0.1812]
[1643766819664,21.753,2757.3,2756.8,0.1812]
[1643766819866,25.37601533,2757.2,2756.8,0.1812]
[1643766820066,1.01099391,2757.0,2756.8,0.1812]
[1643766820266,4.88399391,2756.9,2756.8,0.1812]
[1643766820771,5.88399391,2756.9,2756.8,0.1812]
[1643766821168,2.53399391,2756.9,2756.8,0.1812]
[1643766821369,3.65544704,2756.9,2756.8,0.1812]
[1643766821567,4.65544704,2756.9,2756.8,0.1812]
[1643766821968,4.65544704,2756.9,2756.3,1.0573]
[1643766822167,1.01099391,2756.5,2756.1,8.07380474]
[1643766822970,3.0275133,2756.5,2756.1,0.1813]
[1643766823429,0.523,2756.4,2756.1,0.1813]
[1643766823618,1.01099391,2756.3,2755.6,0.1814]
[1643766823823,1.01099391,2756.1,2755.5,3.0519]
[1643766824018,1.01099391,2755.7,2755.3,3.7972]
[1643766824219,1.01099391,2755.7,2755.3,0.4814]
[1643766824618,1.01099391,2755.7,2755.3,0.1814]
[1643766825625,3.03958495,2755.7,2755.3,0.1814]
[1643766825824,1.01099391,2755.7,2755.3,0.1814]
[1643766826424,1.01099391,2755.9,2755.2,8.35219231]
[1643766827462,1.01099391,2755.7,2755.2,8.35219231]
[1643766829462,3.04377259,2755.7,2755.2,8.35219231]
[1643766829661,1.01099391,2755.7,2755.2,8.35219231]
[1643766829885,1.01099391,2755.5,2755.2,8.35219231]
[1643766830165,1.01099391,2755.5,2755.2,8.17079231]
[1643766830565,1.01099391,2755.5,2755.2,7.87079231]
[1643766830765,1.01099391,2755.3,2755.2,7.47]
[1643766831011,1.01099391,2755.3,2755.0,1.1083619]
[1643766831610,1.01099391,2755.4,2755.0,1.1083619]
[1643766833010,1.39495348,2755.1,2755.0,1.1083619]
[1643766833414,1.57635348,2755.1,2755.0,1.1083619]
[1643766834414,2.48411131,2755.1,2755.0,1.1083619]
[1643766835264,1.19239391,2755.1,2755.0,1.1083619]
[1643766835662,3.31124092,2755.1,2755.0,1.1083619]
[1643766835863,4.26873439,2755.1,2755.0,1.1083619]
[1643766836066,2.19239391,2755.1,2755.0,1.1083619]
[1643766836267,1.19239391,2755.1,2755.0,1.1083619]
[1643766836473,4.32262548,2755.1,2755.0,1.1083619]
[1643766836666,5.15680504,2755.1,2755.0,1.1083619]
[1643766836867,4.97540504,2755.1,2755.0,1.1083619]
[1643766837268,2.84517347,2755.1,2755.0,1.1083619]
[1643766837668,1.01099391,2755.1,2755.0,1.1083619]
[1643766837872,1.01099391,2755.1,2755.0,1.4083619]
[1643766838271,1.01099391,2755.1,2755.0,4.0583619]
[1643766838711,1.01099391,2755.1,2755.0,1.89875466]
[1643766838913,1.01099391,2755.1,2755.0,2.19875466]
[1643766839616,1.01099391,2755.1,2755.0,1.89875466]
[1643766840224,1.01099391,2755.1,2755.0,1.84875466]
[1643766842171,1.01099391,2755.1,2755.0,0.79039276]
[1643766842371,1.01099391,2755.1,2755.0,1.73466636]
[1643766842772,1.19239391,2755.7,2755.0,1.73466636]
[1643766843373,3.27139256,2755.7,2755.0,1.73466636]
[1643766844377,1.19239391,2755.7,2755.4,0.44856678]
[1643766844776,1.01099391,2755.7,2755.4,0.44856678]
[1643766845377,1.01099391,2755.7,2755.5,0.70373093]
[1643766845780,1.01099391,2755.7,2755.6,0.3]
[1643766846019,1.01099391,2755.7,2755.6,6.9]
[1643766846219,1.0,2755.7,2755.6,7.56265]
[1643766846522,0.1814,2756.9,2755.7,4.51106571]
[1643766846719,3.7865,2757.3,2755.8,9.91249086]
[1643766846720,1.1814,2757.2,2755.8,9.91249086]
[1643766846925,1.53382614,2757.1,2755.8,7.9514]
[1643766847119,0.1812,2757.0,2755.8,7.77]
[1643766847320,0.1812,2757.0,2756.4,0.40340369]